fUST/lending_fUST_20240820
["ID","MTS","AMOUNT","RATE_DAILY","PERIOD"]
[335367939,1724163052988,-500.0,0.0001726,2]
[335367940,1724163052997,-500.0,0.0001726,2]
[335367941,1724163053007,-500.0,0.0001726,2]
[335367942,1724163053016,-500.0,0.0001726,2]
[335367943,1724163053026,-1665.29,0.0001726,2]
[335367944,1724163053036,-500.0,0.0001726,2]
[335367945,1724163053045,-500.0,0.0001726,2]
[335367946,1724163053054,-500.0,0.0001726,2]
[335367947,1724163053063,-308.82950679,0.0001726,2]
[335367948,1724163053072,-500.0,0.0001726,2]
[335367949,1724163053081,-500.0,0.0001726,2]
[335367950,1724163053090,-500.0,0.0001726,2]
[335367951,1724163053100,-500.0,0.0001726,2]
[335367952,1724163053109,-500.0,0.0001726,2]
[335367953,1724163053118,-500.0,0.0001726,2]
[335367954,1724163053126,-500.0,0.0001726,2]
[335367955,1724163053135,-1086.16,0.0001726,2]
[335367956,1724163053144,-984.07,0.0001726,2]
[335367957,1724163053152,-500.0,0.0001726,2]
[335367958,1724163053161,-506.31424299,0.0001726,2]
[335367959,1724163053170,-509.69570697,0.0001726,2]
[335367960,1724163053179,-500.0,0.0001726,2]
[335367961,1724163053188,-500.0,0.0001726,2]
[335367962,1724163053197,-500.0,0.0001726,2]
[335367963,1724163053206,-315.60884849,0.0001726,2]
[335367964,1724163053216,-500.0,0.0001726,2]
[335367965,1724163053224,-500.0,0.0001726,2]
[335367966,1724163053233,-206.47219121,0.0001726,2]
[335367967,1724163053242,-500.0,0.0001726,2]
[335367968,1724163053252,-158.59978058,0.0001726,2]
[335367969,1724163053263,-500.0,0.0001726,2]
[335367970,1724163053271,-500.0,0.0001726,2]
[335367971,1724163053280,-500.0,0.0001726,2]
[335367972,1724163053289,-500.0,0.0001726,2]
[335367973,1724163053298,-462.83761311,0.0001726,2]
[335367974,1724163053307,-500.0,0.0001726,2]
[335367975,1724163053316,-500.0,0.0001726,2]
[335367976,1724163053325,-2631.22,0.0001726,2]
[335367977,1724163053334,-500.0,0.0001726,2]
[335367978,1724163053342,-500.0,0.0001726,2]
[335367979,1724163053351,-500.0,0.0001726,2]
[335367980,1724163053360,-500.0,0.0001726,2]
[335367981,1724163053369,-509.04297039,0.0001726,2]
[335367982,1724163053378,-500.0,0.0001726,2]
[335367983,1724163053387,-500.0,0.0001726,2]
[335367984,1724163053396,-602.86,0.0001726,2]
[335367985,1724163053405,-205.77158943,0.0001726,2]
[335367986,1724163053414,-500.0,0.0001726,2]
[335367987,1724163053423,-480.30238347,0.0001726,2]
[335367988,1724163053431,-500.0,0.0001726,2]
[335367989,1724163053440,-500.0,0.0001726,2]
[335367990,1724163053450,-500.0,0.0001726,2]
[335367991,1724163053459,-500.0,0.0001726,2]
[335367992,1724163053467,-500.0,0.0001726,2]
[335367993,1724163053476,-500.0,0.0001726,2]
[335367994,1724163053485,-500.0,0.0001726,2]
[335367995,1724163053497,-500.0,0.0001726,2]
[335367996,1724163053507,-603.72,0.0001726,2]
[335367997,1724163053516,-4700.84,0.0001726,2]
[335367998,1724163053525,-780.17,0.0001726,2]
[335367999,1724163053533,-500.0,0.0001726,2]
[335368000,1724163053542,-500.0,0.0001726,2]
[335368001,1724163053551,-500.0,0.0001726,2]
[335368002,1724163053561,-500.0,0.0001726,2]
[335368003,1724163053570,-555.11710822,0.0001726,2]
[335368004,1724163053579,-500.0,0.0001726,2]
[335368005,1724163053588,-506.03153066,0.0001726,2]
[335368006,1724163053597,-595.9,0.00017267,2]
[335368007,1724163053606,-226.7,0.00017267,2]
[335368008,1724163053615,-5117.28593988,0.00017275,2]
[335368009,1724163053625,-171.493407,0.00017309,2]
[335368010,1724163053634,-174.492612,0.00017309,2]
[335368011,1724163053643,-168.584173,0.00017309,2]
[335368012,1724163053653,-166.332644,0.00017309,2]
[335368013,1724163053662,-171.493404,0.00017309,2]
[335368014,1724163053671,-168.584172,0.00017309,2]
[335368015,1724163053680,-166.332644,0.00017309,2]
[335368016,1724163053689,-171.493404,0.00017309,2]
[335368017,1724163053698,-174.492611,0.00017309,2]
[335368018,1724163053811,-174.492611,0.00017309,2]
[335368019,1724163053822,-171.493404,0.00017309,2]
[335368020,1724163053832,-506.83749623,0.00017534,2]
[335368021,1724163053846,-500.0,0.00017534,2]
[335368022,1724163053856,-500.0,0.00017534,2]
[335368023,1724163053865,-704.33,0.00017534,2]
[335368024,1724163053874,-500.0,0.00017534,2]
[335368025,1724163053884,-500.0,0.00017534,2]
[335368026,1724163053894,-213.1,0.00017534,2]
[335368027,1724163053903,-1765.31467839,0.00017534,2]
[335368028,1724163053913,-1357.4,0.00017534,2]
[335368029,1724163053923,-500.0,0.00017534,2]
[335368030,1724163053933,-500.0,0.00017534,2]
[335368031,1724163053943,-667.48,0.00017534,2]
[335368032,1724163053952,-500.0,0.00017534,2]
[335368033,1724163053961,-772.68,0.00017534,2]
[335368034,1724163053971,-500.0,0.00017534,2]
[335368035,1724163053980,-500.0,0.00017534,2]
[335368036,1724163053989,-500.0,0.00017534,2]
[335368037,1724163053998,-500.0,0.00017534,2]
[335368038,1724163054009,-546.63,0.00017534,2]
[335368039,1724163054018,-291.04990297,0.00017534,2]
[335368040,1724163054028,-500.0,0.00017534,2]
[335368041,1724163054037,-500.0,0.00017534,2]
[335368042,1724163054046,-648.70014127,0.00017534,2]
[335368043,1724163054056,-500.0,0.00017534,2]
[335368044,1724163054066,-500.0,0.00017534,2]
[335368045,1724163054075,-574.57,0.00017534,2]
[335368046,1724163054084,-1625.13,0.00017534,2]
[335368047,1724163054093,-500.0,0.00017534,2]
[335368048,1724163054103,-500.0,0.00017534,2]
[335368049,1724163054112,-871.42,0.00017534,2]
[335368050,1724163054121,-903.72,0.00017534,2]
[335368051,1724163054130,-500.0,0.00017534,2]
[335368052,1724163054139,-1117.96,0.00017534,2]
[335368053,1724163054148,-500.0,0.00017534,2]
[335368054,1724163054157,-500.0,0.00017534,2]
[335368055,1724163054166,-500.0,0.00017534,2]
[335368056,1724163054175,-500.0,0.00017534,2]
[335368057,1724163054185,-421.16147632,0.00017534,2]
[335368058,1724163054194,-500.0,0.00017534,2]
[335368059,1724163054203,-500.0,0.00017534,2]
[335368060,1724163054212,-500.0,0.00017534,2]
[335368061,1724163054221,-1665.29,0.00017534,2]
[335368062,1724163054231,-500.0,0.00017534,2]
[335368063,1724163054240,-500.0,0.00017534,2]
[335368064,1724163054250,-500.0,0.00017534,2]
[335368065,1724163054263,-500.0,0.00017534,2]
[335368066,1724163054272,-1086.16,0.00017534,2]
[335368067,1724163054282,-500.0,0.00017534,2]
[335368068,1724163054291,-984.07,0.00017534,2]
[335368069,1724163054301,-500.0,0.00017534,2]
[335368070,1724163054311,-500.0,0.00017534,2]
[335368071,1724163054320,-500.0,0.00017534,2]
[335368072,1724163054329,-500.0,0.00017534,2]
[335368073,1724163054338,-500.0,0.00017534,2]
[335368074,1724163054348,-500.0,0.00017534,2]
[335368075,1724163054357,-500.0,0.00017534,2]
[335368076,1724163054366,-500.0,0.00017534,2]
[335368077,1724163054375,-500.0,0.00017534,2]
[335368078,1724163054384,-2631.22,0.00017534,2]
[335368079,1724163054393,-500.0,0.00017534,2]
[335368080,1724163054402,-500.0,0.00017534,2]
[335368081,1724163054412,-500.0,0.00017534,2]
[335368082,1724163054421,-500.0,0.00017534,2]
[335368083,1724163054430,-602.86,0.00017534,2]
[335368084,1724163054438,-500.0,0.00017534,2]
[335368085,1724163054448,-500.0,0.00017534,2]
[335368086,1724163054457,-500.0,0.00017534,2]
[335368087,1724163054466,-500.0,0.00017534,2]
[335368088,1724163054475,-500.0,0.00017534,2]
[335368089,1724163054485,-500.0,0.00017534,2]
[335368090,1724163054495,-500.0,0.00017534,2]
[335368091,1724163054504,-291.35,0.00017534,2]
[335368092,1724163054515,-500.0,0.00017534,2]
[335368093,1724163054524,-500.0,0.00017534,2]
[335368094,1724163054534,-603.72,0.00017534,2]
[335368095,1724163054544,-4700.84,0.00017534,2]
[335368096,1724163054554,-780.17,0.00017534,2]
[335368097,1724163054563,-500.0,0.00017534,2]
[335368098,1724163054573,-500.0,0.00017534,2]
[335368099,1724163054582,-480.35904781,0.00017534,2]
[335368100,1724163054591,-500.0,0.00017534,2]
[335368101,1724163054600,-500.0,0.00017534,2]
[335368102,1724163054611,-696.2303353,0.0001764,2]
[335368103,1724163054622,-595.9,0.00017682,2]
[335368104,1724163054633,-226.7,0.00017682,2]
[335368105,1724163054643,-5117.28593988,0.00017695,2]
[335368106,1724163054652,-500.0,0.00017808,2]
[335368107,1724163054661,-500.0,0.00017808,2]
[335368108,1724163054671,-704.33,0.00017808,2]
[335368109,1724163054680,-420.00257582,0.00017808,2]
[335368110,1724163054689,-500.0,0.00017808,2]
[335368111,1724163054698,-1357.4,0.00017808,2]
[335368112,1724163054707,-500.0,0.00017808,2]
[335368113,1724163054717,-500.0,0.00017808,2]
[335368114,1724163054729,-667.48,0.00017808,2]
[335368115,1724163054739,-500.0,0.00017808,2]
[335368116,1724163054750,-772.68,0.00017808,2]
[335368117,1724163054761,-609.26081606,0.00017808,2]
[335368118,1724163054773,-500.0,0.00017808,2]
[335368119,1724163054783,-546.63,0.00017808,2]
[335368120,1724163054792,-500.0,0.00017808,2]
[335368121,1724163054801,-500.0,0.00017808,2]
[335368122,1724163054813,-500.0,0.00017808,2]
[335368123,1724163054823,-500.0,0.00017808,2]
[335368124,1724163054833,-1625.13,0.00017808,2]
[335368125,1724163054849,-500.0,0.00017808,2]
[335368126,1724163054858,-871.42,0.00017808,2]
[335368127,1724163054869,-903.72,0.00017808,2]
[335368128,1724163054879,-588.1015893,0.00017808,2]
[335368129,1724163054890,-1117.96,0.00017808,2]
[335368130,1724163054901,-500.0,0.00017808,2]
[335368131,1724163054912,-500.0,0.00017808,2]
[335368132,1724163054922,-189.27118983,0.00017808,2]
[335368133,1724163054932,-500.0,0.00017808,2]
[335368134,1724163054942,-500.0,0.00017808,2]
[335368135,1724163054951,-1665.29,0.00017808,2]
[335368136,1724163054961,-489.35367587,0.00017808,2]
[335368137,1724163054970,-500.0,0.00017808,2]
[335368138,1724163054979,-500.0,0.00017808,2]
[335368139,1724163054988,-1086.16,0.00017808,2]
[335368140,1724163054997,-500.0,0.00017808,2]
[335368141,1724163055008,-984.07,0.00017808,2]
[335368142,1724163055017,-151.0,0.00017808,2]
[335368143,1724163055026,-266.7120858,0.00017808,2]
[335368144,1724163055035,-500.0,0.00017808,2]
[335368145,1724163055044,-500.0,0.00017808,2]
[335368146,1724163055054,-500.0,0.00017808,2]
[335368147,1724163055064,-151.0,0.00017808,2]
[335368148,1724163055073,-151.0,0.00017808,2]
[335368149,1724163055082,-500.0,0.00017808,2]
[335368150,1724163055091,-500.0,0.00017808,2]
[335368151,1724163055099,-500.0,0.00017808,2]
[335368152,1724163055109,-500.0,0.00017808,2]
[335368153,1724163055118,-500.0,0.00017808,2]
[335368154,1724163055127,-2631.22,0.00017808,2]
[335368155,1724163055136,-500.0,0.00017808,2]
[335368156,1724163055146,-172.49134743,0.00017808,2]
[335368157,1724163055155,-500.0,0.00017808,2]
[335368158,1724163055164,-500.0,0.00017808,2]
[335368159,1724163055174,-602.86,0.00017808,2]
[335368160,1724163055183,-500.0,0.00017808,2]
[335368161,1724163055193,-151.0,0.00017808,2]
[335368162,1724163055203,-500.0,0.00017808,2]
[335368163,1724163055214,-500.0,0.00017808,2]
[335368164,1724163055224,-500.0,0.00017808,2]
[335368165,1724163055234,-500.0,0.00017808,2]
[335368166,1724163055243,-151.0,0.00017808,2]
[335368167,1724163055253,-500.0,0.00017808,2]
[335368168,1724163055265,-151.0,0.00017808,2]
[335368169,1724163055275,-485.75164508,0.00017808,2]
[335368170,1724163055284,-603.72,0.00017808,2]
[335368171,1724163055294,-4700.84,0.00017808,2]
[335368172,1724163055303,-780.17,0.00017808,2]
[335368173,1724163055314,-500.0,0.00017808,2]
[335368174,1724163055325,-500.0,0.00017808,2]
[335368175,1724163055335,-151.0,0.00017808,2]
[335368176,1724163055345,-500.0,0.00017808,2]
[335368177,1724163055356,-579.37597392,0.00017808,2]
[335368178,1724163055367,-5117.28593988,0.00018039,2]
[335368179,1724163055376,-500.0,0.00018082,2]
[335368180,1724163055386,-275.97082633,0.00018082,2]
[335368181,1724163055395,-704.33,0.00018082,2]
[335368182,1724163055404,-1357.4,0.00018082,2]
[335368183,1724163055414,-179.99852246,0.00018082,2]
[335368184,1724163055425,-500.0,0.00018082,2]
[335368185,1724163055435,-667.48,0.00018082,2]
[335368186,1724163055447,-500.0,0.00018082,2]
[335368187,1724163055457,-772.68,0.00018082,2]
[335368188,1724163055468,-287.49000296,0.00018082,2]
[335368189,1724163055478,-546.63,0.00018082,2]
[335368190,1724163055488,-472.89284262,0.00018082,2]
[335368191,1724163055499,-500.0,0.00018082,2]
[335368192,1724163055512,-1625.13,0.00018082,2]
[335368193,1724163055524,-500.0,0.00018082,2]
[335368194,1724163055534,-871.42,0.00018082,2]
[335368195,1724163055545,-903.72,0.00018082,2]
[335368196,1724163055555,-1117.96,0.00018082,2]
[335368197,1724163055565,-500.0,0.00018082,2]
[335368198,1724163055576,-267.16998075,0.00018082,2]
[335368199,1724163055702,-258.63409913,0.00018082,2]
[335368200,1724163055803,-500.0,0.00018082,2]
[335368201,1724163055812,-500.0,0.00018082,2]
[335368202,1724163055822,-1481.73186683,0.00018082,2]
[335368203,1724163055838,-183.55813317,0.00018082,2]
[335368204,1724163055847,-500.0,0.00018082,2]
[335368205,1724163055856,-500.0,0.00018082,2]
[335368206,1724163055866,-1086.16,0.00018082,2]
[335368207,1724163055876,-500.0,0.00018082,2]
[335368208,1724163055886,-984.07,0.00018082,2]
[335368209,1724163055895,-500.0,0.00018082,2]
[335368210,1724163055904,-500.0,0.00018082,2]
[335368211,1724163055914,-500.0,0.00018082,2]
[335368212,1724163055925,-283.11063343,0.00018082,2]
[335368213,1724163055936,-500.0,0.00018082,2]
[335368214,1724163055947,-500.0,0.00018082,2]
[335368215,1724163055956,-408.84840452,0.00018082,2]
[335368216,1724163056306,-303.9625,0.00012999,2]
[335368217,1724163056474,156.87056893,8.019e-05,2]
[335368218,1724163197531,24900.0,7.397e-05,2]
[335368219,1724163655798,1647.12308075,7.911e-05,2]
[335368220,1724163662322,24900.0,8.064e-05,2]
[335368221,1724163691429,546.74672462,8.5e-05,2]
[335368222,1724163700114,553.21261637,8.5e-05,2]
[335368223,1724163703881,850.86713135,7.954e-05,2]
[335368224,1724163738193,154.76012181,8.019e-05,2]
[335368225,1724163749101,600.93966433,8.019e-05,2]
[335368226,1724163752263,1233.12750782,8.42e-05,2]
[335368227,1724163761147,154.76012181,8.019e-05,2]
[335368228,1724163768179,154.76012181,8.019e-05,2]
[335368229,1724163772720,195.63337011,8.019e-05,2]
[335368230,1724163774319,309.47390132,8.019e-05,2]
[335368231,1724163797772,210.26167047,8.019e-05,2]
[335368232,1724163814782,309.52024362,8.019e-05,2]
[335368233,1724163821949,2166.4854483,7.911e-05,2]
[335368234,1724163822019,810.66321171,7.954e-05,2]
[335368235,1724163824261,199.55726115,8.019e-05,2]
[335368236,1724163829498,1766.63770101,7.911e-05,2]
[335368237,1724163838337,202.58321353,8.019e-05,2]
[335368238,1724163838844,181.75712073,8.019e-05,2]
[335368239,1724163841900,154.76012181,8.019e-05,2]
[335368240,1724163844875,206.59847366,8.019e-05,2]
[335368241,1724163850058,303.91507343,8.019e-05,2]
[335368242,1724163850320,155.23257901,8.019e-05,2]
[335368243,1724163854237,160.46171883,8.019e-05,2]
[335368244,1724163855334,180.81152876,8.019e-05,2]
[335368245,1724163857885,154.76012181,8.019e-05,2]
[335368246,1724163858801,188.58516866,8.019e-05,2]
[335368247,1724163863317,534.91146023,8.019e-05,2]
[335368248,1724163865117,162.66594384,8.019e-05,2]
[335368249,1724163870333,180.81152876,8.019e-05,2]
[335368250,1724163872906,154.76012181,8.019e-05,2]
[335368251,1724163884211,160.46171883,8.019e-05,2]
[335368252,1724163884823,176.12678073,8.019e-05,2]
[335368253,1724163885163,342.60173686,8.019e-05,2]
[335368254,1724163893327,534.91146023,8.019e-05,2]
[335368255,1724163894857,197.50730199,8.019e-05,2]
[335368256,1724163897199,154.76012181,8.019e-05,2]
[335368257,1724163899619,159.95730847,8.019e-05,2]
[335368258,1724163907864,154.76012181,8.019e-05,2]
[335368259,1724163914446,190.09307092,8.019e-05,2]
[335368260,1724163934696,688.74575077,7.954e-05,2]
[335368261,1724163935926,155.30732615,8.019e-05,2]
[335368262,1724163994548,933.89722372,7.954e-05,2]
[335368265,1724164108276,500.0,8e-05,2]
[335368266,1724164108849,153.2102152,8e-05,2]
[335368267,1724164126883,887.49494769,8.5e-05,2]
[335368268,1724164135046,8043.30142211,8.197e-05,2]
[335368309,1724164232741,-601.26,7.911e-05,2]
[335368311,1724164232753,-1565.2254483,7.911e-05,2]
[335368313,1724164232763,-300.0,8.196e-05,2]
[335368315,1724164232772,-300.0,8.196e-05,2]
[335368317,1724164232782,-16856.69857789,8.197e-05,2]
[335368319,1724164232791,-218.51615349,8.197e-05,2]
[335368321,1724164232801,-217.69078295,8.52e-05,2]
[335368323,1724164232810,-2282.67176676,8.521e-05,3]
[335368325,1724164232820,-9660.2899886,8.521e-05,2]
[335368327,1724164232829,-2712.87069354,8.521e-05,2]
[335368329,1724164232839,-3092.99892406,8.521e-05,2]
[335368331,1724164232848,-42415.91084593,8.521e-05,2]
[335368333,1724164232858,-342.6945234,8.532e-05,2]
[335368335,1724164232868,-1766.63770101,8.761e-05,2]
[335368337,1724164232877,-810.66321171,8.761e-05,2]
[335368339,1724164232887,-154.76012181,8.769e-05,2]
[335368341,1724164232897,-203.2906727,8.769e-05,2]
[335368343,1724164232906,-160.46171883,8.769e-05,2]
[335368345,1724164232916,-154.76012181,8.769e-05,2]
[335368347,1724164232925,-213.11844268,8.793e-05,2]
[335368349,1724164232935,-298.97351394,8.793e-05,2]
[335368351,1724164232944,-688.74575077,8.793e-05,2]
[335368353,1724164232953,-196.83090407,8.793e-05,2]
[335368355,1724164232966,-154.76012181,8.793e-05,2]
[335368357,1724164232975,-154.76012181,8.861e-05,2]
[335368359,1724164232985,-154.79103211,8.861e-05,2]
[335368361,1724164232996,-534.91146023,8.861e-05,2]
[335368363,1724164233006,-933.89722372,8.861e-05,2]
[335368365,1724164233015,-155.03129781,8.861e-05,2]
[335368367,1724164233025,-309.52024362,8.861e-05,2]
[335368369,1724164233035,-154.76012181,8.883e-05,2]
[335368372,1724164233046,-420.0,9.016e-05,2]
[335368373,1724164233056,-420.0,9.016e-05,2]
[335368375,1724164233066,-186.98704903,9.429e-05,2]
[335368377,1724164233076,-154.76012181,9.429e-05,2]
[335368380,1724164233087,-174.85504165,9.429e-05,2]
[335368382,1724164233098,-850.86713135,9.524e-05,2]
[335368384,1724164233109,-587.0,9.917e-05,2]
[335368386,1724164233119,-587.0,9.917e-05,2]
[335368388,1724164233129,-218.08775075,9.936e-05,2]
[335368390,1724164233140,-55478.02051668,9.936e-05,2]
[335368392,1724164233151,-13983.4844733,9.939e-05,2]
[335368453,1724164238732,-188.81626543,8.761e-05,2]
[335368455,1724164238742,-600.83188425,8.761e-05,2]
[335368457,1724164238752,-190.09307092,8.793e-05,2]
[335368458,1724164238763,-154.98301103,8.883e-05,2]
[335368459,1724164238773,-304.64610056,8.883e-05,2]
[335368460,1724164238782,-1856.77439887,9.939e-05,2]
[335368461,1724164238794,-2033.60573243,9.939e-05,2]
[335368462,1724164238804,-288.30937481,0.0001,2]
[335368463,1724164238814,-154.76012181,0.0001,2]
[335368464,1724164238824,-3577.87298395,0.0001,2]
[335368465,1724164239044,-10936.85739421,0.0001,2]
[335368466,1724164239055,-208.11160678,0.0001,2]
[335368467,1724164239064,-34539.53864766,0.0001,2]
[335368468,1724164239074,-17873.8646046,0.00010597,2]
[335368469,1724164239084,-823.0,0.00010909,2]
[335368470,1724164239093,-823.0,0.00010909,2]
[335368471,1724164239103,-2165.31,0.00010959,2]
[335368472,1724164239113,-918.7595475,0.00010959,2]
[335368473,1724164239123,-1804.42,0.00010959,2]
[335368474,1724164239133,-1503.69,0.00010959,2]
[335368475,1724164239143,-1253.07,0.00010959,2]
[335368476,1724164239154,-1044.23,0.00010959,2]
[335368477,1724164239164,-870.19,0.00010959,2]
[335368478,1724164239174,-725.16,0.00010959,2]
[335368479,1724164239184,-604.3,0.00010959,2]
[335368480,1724164239193,-503.58,0.00010959,2]
[335368481,1724164239203,-419.65,0.00010959,2]
[335368482,1724164239213,-349.71,0.00010959,2]
[335368483,1724164239226,-291.42,0.00010959,2]
[335368484,1724164239236,-242.85,0.00010959,2]
[335368485,1724164239246,-202.38,0.00010959,2]
[335368486,1724164239256,-309.52024362,0.00011,2]
[335368487,1724164239267,-200.0,0.00011241,2]
[335368488,1724164239276,-200.0,0.00011241,2]
[335368489,1724164239285,-200.22314422,0.00011241,2]
[335368490,1724164239295,-156.04172297,0.00011241,2]
[335368491,1724164239308,-17873.8646046,0.00011355,2]
[335368492,1724164239318,-780.13119624,0.00011712,2]
[335368493,1724164239328,-200.0,0.00011873,2]
[335368494,1724164239337,-303804.278832,0.000119,2]
[335368495,1724164239347,-8845.25511796,0.00011999,2]
[335368496,1724164239356,-1152.0,0.00012,2]
[335368497,1724164239366,-1152.0,0.00012,2]
[335368498,1724164239376,-101268.092944,0.00012103,2]
[335368499,1724164239385,-17873.8646046,0.00012113,2]
[335368500,1724164239395,-223.54518659,0.00012163,2]
[335368501,1724164239405,-223.54518659,0.00012163,2]
[335368502,1724164239415,-7014.13255051,0.00012163,2]
[335368503,1724164239424,-396.27343154,0.000123,2]
[335368504,1724164239433,-7921.44686656,0.000125,2]
[335368505,1724164239443,-2128.24653365,0.00012516,2]
[335368506,1724164239452,-2128.24653365,0.00012516,2]
[335368507,1724164239461,-2143.02877073,0.00012551,2]
[335368508,1724164239472,-1613.61724275,0.00012551,2]
[335368509,1724164239482,-400.0,0.00012611,2]
[335368510,1724164239491,-400.0,0.00012611,2]
[335368511,1724164239501,-1500.0,0.00012629,2]
[335368512,1724164239510,-817.60790766,0.00012782,2]
[335368513,1724164239519,-292.50625979,0.00012782,2]
[335368514,1724164239529,-817.60790766,0.00012782,2]
[335368515,1724164239538,-811.47145884,0.00012782,2]
[335368516,1724164239548,-17873.8646046,0.00012871,2]
[335368517,1724164239558,-569.6147727,0.00012898,2]
[335368518,1724164239567,-422.36012849,0.00012898,2]
[335368519,1724164239577,-898.81779354,0.00012898,2]
[335368520,1724164239586,-728.8710597,0.00012898,2]
[335368521,1724164239596,-27623.46856315,0.000129,2]
[335368522,1724164239605,-544.06785329,0.00012934,2]
[335368523,1724164239615,-665.53459983,0.00012934,2]
[335368524,1724164239624,-601.94985179,0.00012934,2]
[335368525,1724164239634,-154.76012181,0.00012934,2]
[335368526,1724164239644,-154.76012181,0.00012934,2]
[335368527,1724164239654,-154.76012181,0.00012971,2]
[335368528,1724164239664,-157.11235205,0.00012971,2]
[335368529,1724164239673,-320.30409158,0.00012971,2]
[335368530,1724164239683,-157.11235205,0.00012971,2]
[335368531,1724164239692,-413.70707529,0.00012971,2]
[335368532,1724164239702,-156.87056893,0.00012971,2]
[335368533,1724164239711,-154.76012181,0.00012971,2]
[335368534,1724164239723,-493.36312925,0.00012985,2]
[335368535,1724164239732,-493.36312925,0.00012989,2]
[335368536,1724164239742,-404.47284307,0.00012989,2]
[335368537,1724164239752,-521.35824671,0.00012991,2]
[335368538,1724164239762,-862.34157179,0.00013,2]
[335368539,1724164239771,-150.112236,0.00013,2]
[335368540,1724164239781,-200.0,0.00013155,2]
[335368541,1724164239791,-200.0,0.00013155,2]
[335368542,1724164239800,-200.0,0.00013155,2]
[335368543,1724164239813,-1613.0,0.000132,2]
[335368544,1724164239823,-510.0,0.000132,2]
[335368545,1724164239832,-400.0,0.00013242,2]
[335368546,1724164239842,-154.76012181,0.00013333,2]
[335368547,1724164239854,-495.19490276,0.00013496,2]
[335368548,1724164239864,-158.1221147,0.00013496,2]
[335368549,1724164239874,-301.56944091,0.00013496,2]
[335368550,1724164239884,-158.1221147,0.00013496,2]
[335368551,1724164239893,-150.112233,0.000136,2]
[335368552,1724164239903,-20797.12874944,0.00013697,2]
[335368553,1724164239913,-500.0,0.00013698,2]
[335368554,1724164239928,-366.25195477,0.00013698,2]
[335368555,1724164239938,-200.59230123,0.00013698,2]
[335368556,1724164239948,-500.0,0.00013698,2]
[335368557,1724164239958,-500.0,0.00013698,2]
[335368558,1724164239968,-500.0,0.00013698,2]
[335368559,1724164239980,-523.91604937,0.00013698,2]
[335368560,1724164239989,-500.0,0.00013698,2]
[335368561,1724164239999,-500.0,0.00013698,2]
[335368562,1724164240009,-500.0,0.00013698,2]
[335368563,1724164240018,-500.0,0.00013698,2]
[335368564,1724164240028,-500.0,0.00013698,2]
[335368565,1724164240038,-500.0,0.00013698,2]
[335368566,1724164240051,-500.0,0.00013698,2]
[335368567,1724164240060,-500.0,0.00013698,2]
[335368568,1724164240071,-169.74893845,0.00013698,2]
[335368569,1724164240081,-500.0,0.00013698,2]
[335368570,1724164240092,-500.0,0.00013698,2]
[335368571,1724164240102,-500.0,0.00013698,2]
[335368572,1724164240113,-500.0,0.00013698,2]
[335368573,1724164240123,-500.0,0.00013698,2]
[335368574,1724164240133,-500.0,0.00013698,2]
[335368575,1724164240143,-500.0,0.00013698,2]
[335368576,1724164240152,-500.0,0.00013698,2]
[335368577,1724164240163,-500.0,0.00013698,2]
[335368578,1724164240173,-500.0,0.00013698,2]
[335368579,1724164240182,-356.22180046,0.00013698,2]
[335368580,1724164240192,-200.37590733,0.00013698,2]
[335368581,1724164240202,-500.0,0.00013698,2]
[335368582,1724164240211,-500.0,0.00013698,2]
[335368583,1724164240224,-500.0,0.00013698,2]
[335368584,1724164240237,-200.0,0.00013698,2]